fUSD/lending_fUSD_20260531
["ID","MTS","AMOUNT","RATE_DAILY","PERIOD"]
[423528587,1780192245000,-160.872003,0.00029651,2]
[423528599,1780192245000,-358.75663056,0.00029651,2]
[423528591,1780192245000,-471.82849879,0.00029651,2]
[423528597,1780192245000,-351.99088757,0.00029651,2]
[423528598,1780192245000,-181.66930495,0.00029651,2]
[423528606,1780192245000,-161.68186306,0.00029651,2]
[423528592,1780192245000,-302.6134284,0.00029651,2]
[423528603,1780192245000,-502.74430751,0.00029651,2]
[423528600,1780192245000,-240.9392332,0.00029651,2]
[423528608,1780192245000,-344.29659048,0.00029651,2]
[423528601,1780192245000,-464.75331045,0.00029651,2]
[423528610,1780192245000,-308.15756404,0.00029651,2]
[423528602,1780192245000,-183.42166708,0.00029651,2]
[423528604,1780192245000,-339.75514277,0.00029651,2]
[423528605,1780192245000,-327.31372579,0.00029651,2]
[423528609,1780192245000,-248.64424017,0.00029651,2]
[423528607,1780192245000,-300.21978308,0.00029651,2]
[423528595,1780192245000,-413.37560361,0.00029651,2]
[423528677,1780192246000,-1545.0,0.00030129,120]
[423528656,1780192246000,-1000.0,0.00030127,10]
[423528659,1780192246000,-186.90829141,0.00030127,7]
[423528676,1780192246000,-1545.0,0.00030129,120]
[423528675,1780192246000,-1545.0,0.00030129,120]
[423528660,1780192246000,-1000.0,0.00030128,120]
[423528670,1780192246000,-1545.0,0.00030129,120]
[423528679,1780192246000,-306.16325602,0.00030129,120]
[423528666,1780192246000,-200.0,0.00030129,2]
[423528667,1780192246000,-188.19552384,0.00030129,2]
[423528678,1780192246000,-1545.0,0.00030129,120]
[423528673,1780192246000,-1545.0,0.00030129,120]
[423528662,1780192246000,-232.85955464,0.00030128,2]
[423528665,1780192246000,-315.57494815,0.00030129,10]
[423528671,1780192246000,-1545.0,0.00030129,120]
[423528655,1780192246000,-1000.0,0.00030126,7]
[423528643,1780192246000,-26254.3480558,0.0003003,2]
[423528654,1780192246000,-194.27979737,0.0003012,2]
[423528674,1780192246000,-1545.0,0.00030129,120]
[423528650,1780192246000,-200.0,0.000301,10]
[423528648,1780192246000,-611.81,0.00030082,120]
[423528649,1780192246000,-1000.0,0.00030099,22]
[423528647,1780192246000,-573.0,0.00030075,7]
[423528651,1780192246000,-541.8122188,0.000301,2]
[423528646,1780192246000,-350.0,0.00030073,2]
[423528644,1780192246000,-500.0,0.00030047,60]
[423528642,1780192246000,-300.0,0.00030027,7]
[423528645,1780192246000,-500.0,0.0003006,19]
[423528652,1780192246000,-636.59752961,0.000301,2]
[423528664,1780192246000,-300.0,0.00030129,10]
[423528663,1780192246000,-1000.0,0.00030129,2]
[423528661,1780192246000,-1000.0,0.00030128,2]
[423528653,1780192246000,-504.65672223,0.000301,2]
[423528658,1780192246000,-214.16594777,0.00030127,7]
[423528672,1780192246000,-1545.0,0.00030129,120]
[423528657,1780192246000,-151.0,0.00030127,7]
[423528683,1780192246000,-151.0,0.00030129,120]
[423528696,1780192246000,-154.0,0.00030129,120]
[423528700,1780192246000,-200.0,0.00030129,2]
[423528712,1780192246000,-1545.0,0.00030129,120]
[423528723,1780192246000,-859.25,0.00030129,7]
[423528713,1780192246000,-1545.0,0.00030129,120]
[423528699,1780192246000,-500.0,0.00030129,60]
[423528715,1780192246000,-1545.0,0.00030129,120]
[423528718,1780192246000,-1545.0,0.00030129,120]
[423528719,1780192246000,-1545.0,0.00030129,120]
[423528717,1780192246000,-1545.0,0.00030129,120]
[423528716,1780192246000,-1545.0,0.00030129,120]
[423528721,1780192246000,-1584.61877867,0.00030129,120]
[423528722,1780192246000,-500.0,0.00030129,2]
[423528668,1780192246000,-200.0,0.00030129,2]
[423528724,1780192246000,-683224.36188805,0.0003013,7]
[423528697,1780192246000,-253.40818272,0.00030129,120]
[423528695,1780192246000,-231.1569584,0.00030129,120]
[423528720,1780192246000,-1571.66394522,0.00030129,120]
[423528706,1780192246000,-1545.0,0.00030129,120]
[423528710,1780192246000,-1575.66327408,0.00030129,120]
[423528691,1780192246000,-156.78960693,0.00030129,120]
[423528685,1780192246000,-151.0,0.00030129,120]
[423528689,1780192246000,-151.0,0.00030129,120]
[423528690,1780192246000,-151.0,0.00030129,120]
[423528680,1780192246000,-300.0,0.00030129,120]
[423528681,1780192246000,-151.0,0.00030129,120]
[423528687,1780192246000,-153.72526399,0.00030129,120]
[423528682,1780192246000,-151.0,0.00030129,120]
[423528692,1780192246000,-304.0,0.00030129,120]
[423528684,1780192246000,-151.0,0.00030129,120]
[423528694,1780192246000,-153.0,0.00030129,120]
[423528704,1780192246000,-1545.0,0.00030129,120]
[423528708,1780192246000,-1545.0,0.00030129,120]
[423528702,1780192246000,-1545.0,0.00030129,120]
[423528688,1780192246000,-151.0,0.00030129,120]
[423528693,1780192246000,-153.0,0.00030129,120]
[423528788,1780192247000,-17525.32,0.00027397,10]
[423528790,1780192247000,-29659.37353328,0.0003013,7]
[423528772,1780192247000,-199.7073249,0.00012066,2]
[423528767,1780192247000,-416.8526751,0.00012066,2]
[423528774,1780192247000,-73.4380751,0.0002,2]
[423528740,1780192247000,-514.53602507,0.00020094,2]
[423528753,1780192247000,-728.22339346,0.0003013,7]
[423528743,1780192247000,-463.52887949,0.00020094,2]
[423528760,1780192247000,-1375.31058709,0.0003013,7]
[423528746,1780192247000,-375.4692725,0.00020094,2]
[423528756,1780192247000,-2877.10776756,0.0003013,7]
[423528730,1780192247000,-130099.45590726,0.0003013,7]
[423528786,1780192247000,-532.5619249,0.0002,2]
[423528750,1780192247000,-678.28673912,0.00020094,2]
[423528818,1780192247000,-1016.04869718,0.0003013,7]
[423528820,1780192247000,-396.39720214,0.00022,2]
[423528810,1780192247000,-616.56,0.00012971,2]
[423528831,1780192247000,-4050.06354212,0.00025381,2]
[423528832,1780192247000,-684.78,0.00025381,2]
[423528827,1780192247000,-1287.57582704,0.00021933,2]
[423528829,1780192247000,-606.0,0.00023,2]
[423528828,1780192247000,-209.60279786,0.00022,2]
[423528814,1780192247000,-606.0,0.00021,2]
[423528825,1780192247000,-236.04068925,0.00018,2]
[423528830,1780192247000,-606.0,0.00024,2]
[423528807,1780192247000,-616.56,0.00012669,2]
[423528816,1780192247000,-1106.5367104,0.0003013,7]
[423528812,1780192247000,-616.56,0.00013273,2]
[423528805,1780192247000,-311.02849348,0.00012368,2]
[423528802,1780192247000,-305.53150652,0.00012368,2]
[423528826,1780192247000,-744.24508914,0.00021933,2]
[423528833,1780192263000,-617.33968552,0.00025,2]
[423528835,1780192377000,-196.4858024,0.00012659,2]
[423528834,1780192377000,-250.0,0.00011508,2]
[423528838,1780192377000,-380.39669928,0.00023772,2]
[423528837,1780192377000,-604.9384145,0.00021965,2]
[423528836,1780192377000,-600.0,0.0001764,2]
[423528842,1780192378000,-1263.64183236,0.00019497,2]
[423528841,1780192378000,-768.17908382,0.00019497,2]
[423528840,1780192378000,-1731.82091618,0.00019497,2]
[423528839,1780192378000,-300.0,0.0001764,2]
[423528845,1780192379000,-1047.61960593,0.0001764,2]
[423528846,1780192379000,-984.20131025,0.00019497,2]
[423528843,1780192379000,-1236.35816764,0.00019497,2]
[423528844,1780192379000,-795.46274854,0.00019497,2]
[423528847,1780192380000,-720.33594121,0.00019497,2]
[423528848,1780192380000,-1311.48497497,0.00019497,2]
[423528856,1780192381000,-5.99714091,0.0002,2]
[423528855,1780192381000,-1816.69410885,0.00019497,2]
[423528854,1780192381000,-209.12966642,0.0001764,2]
[423528853,1780192381000,1264.885087,0.00027472,120]
[423528852,1780192381000,739.313202,0.00027472,120]
[423528850,1780192381000,-1188.51502503,0.00019497,2]
[423528849,1780192381000,-160.0,0.0001764,2]
[423528851,1780192381000,-683.30589115,0.00019497,2]
[423528858,1780192596000,-1788.89432231,0.00019,2]
[423528859,1780192597000,-597.4,0.00016438,2]
[423528861,1780192597000,-597.4,0.0001841,2]
[423528860,1780192597000,-215.58360558,0.0001764,2]
[423528863,1780192597000,-78.51071673,0.00019497,2]
[423528862,1780192597000,-300.0,0.00019496,2]
[423528864,1780192597000,1716.26279,0.0002729,120]
[423528865,1780192598000,-73.48928327,0.00019497,2]
[423528874,1780192598000,-152.0,0.00019,2]
[423528873,1780192598000,-148.00503904,0.00020819,2]
[423528870,1780192598000,-151.0,0.00020819,2]
[423528872,1780192598000,-151.0,0.00020819,2]
[423528871,1780192598000,-151.0,0.00020819,2]
[423528867,1780192598000,-153.0,0.0002,2]
[423528869,1780192598000,-151.0,0.00020819,2]
[423528868,1780192598000,-597.4,0.00020381,2]
[423528866,1780192598000,-213.0,0.0002,2]
[423528882,1780192599000,-151.0,0.00020819,2]
[423528881,1780192599000,-151.0,0.00020819,2]
[423528879,1780192599000,-151.0,0.00020819,2]
[423528885,1780192599000,-151.0,0.00020819,2]
[423528878,1780192599000,-151.0,0.00020819,2]
[423528876,1780192599000,-151.0,0.00020819,2]
[423528875,1780192599000,-2.99496096,0.00020819,2]
[423528877,1780192599000,-151.0,0.00020819,2]
[423528880,1780192599000,-151.0,0.00020819,2]
[423528893,1780192599000,-215.58360558,0.00017668,2]
[423528886,1780192599000,-123.89936135,0.00020819,2]
[423528884,1780192599000,-151.0,0.00020819,2]
[423528888,1780192599000,-27.10063865,0.00020819,2]
[423528887,1780192599000,-151.02874504,0.00018053,2]
[423528889,1780192599000,-151.0,0.00020819,2]
[423528891,1780192599000,-1308.76493862,0.00020819,2]
[423528890,1780192599000,-151.0,0.00020819,2]
[423528892,1780192599000,716.74,0.00026615,120]
[423528883,1780192599000,-151.0,0.00020819,2]
[423528894,1780192600000,-158.12,0.00018926,2]
[423528896,1780192600000,-771.41099027,0.00020819,2]
[423528897,1780192600000,-151.0,0.00020819,2]
[423528895,1780192600000,-151.0,0.00019,2]
[423528898,1780192600000,-151.0,0.00020819,2]
[423528901,1780192600000,-500.0,0.00019496,2]
[423528900,1780192600000,-500.0,0.00019496,2]
[423528903,1780192600000,-288.89432231,0.00019496,2]
[423528902,1780192600000,-500.0,0.00019496,2]
[423528899,1780192600000,-190.77972646,0.000209,2]
[423528904,1780192601000,-882.34876627,0.00018696,2]
[423528905,1780192601000,-906.54555604,0.00018696,2]
[423528907,1780192602000,-151.0,0.00019,2]
[423528906,1780192602000,-144.56017466,0.00018696,2]
[423528909,1780192602000,-500.0,0.00019496,2]
[423528908,1780192602000,-211.10567769,0.00019496,2]
[423528910,1780192602000,-500.0,0.00019496,2]
[423528913,1780192602000,-209.12966642,0.00017668,2]
[423528911,1780192602000,-282.22846996,0.00019496,2]
[423528912,1780192602000,-160.0,0.00017668,2]
[423528919,1780192602000,-1409.03671462,0.0002,2]
[423528918,1780192602000,-151.0,0.00019,2]
[423528915,1780192602000,-1200.0,0.00018999,2]
[423528916,1780192602000,-4.18105031,0.00019,2]
[423528914,1780192602000,-215.58360558,0.00017695,2]
[423528917,1780192602000,-228.85760769,0.00019,2]
[423528921,1780192603000,-1788.89432231,0.000189,2]
[423528920,1780192603000,-1788.89432231,0.000189,2]
[423528922,1780192604000,-500.0,0.00017039,2]
[423528923,1780192604000,-250.0,0.00017039,2]
[423528924,1780192604000,-250.0,0.00017423,2]
[423528926,1780192604000,-500.0,0.00018082,2]
[423528925,1780192604000,-160.0,0.00017675,2]
[423528927,1780192604000,-128.89432231,0.00018082,2]
[423528931,1780192604000,-226.48982199,0.000189,2]
[423528928,1780192604000,-209.12966642,0.00017675,2]
[423528932,1780192604000,-150.0,0.00019,2]
[423528933,1780192604000,-151.0,0.00019,2]
[423528935,1780192604000,-150.0,0.00019,2]
[423528934,1780192604000,-152.0,0.00019,2]
[423528936,1780192604000,-413.58555063,0.0002,2]
[423528929,1780192604000,-215.58360558,0.00017723,2]
[423528930,1780192604000,-121.10567769,0.00018082,2]
[423528937,1780192613000,372.689357,0.00027259,120]
[423528938,1780192626000,723.517927,0.00027177,120]
[423528939,1780192643000,186.344678,0.00026803,120]
[423528954,1780192847000,264.859241,0.00026803,120]
[423528960,1780192923000,190.73998012,0.00026,120]
[423528961,1780192962000,3850.654472,0.00026751,120]
[423528962,1780192990000,7069.682494,0.00025562,120]
[423528965,1780193226000,1134.567835,0.00025562,120]
[423528966,1780193274000,2551.393154,0.00024745,120]
[423528972,1780193309000,259.753188,0.00024874,120]
[423528981,1780193431000,-209.52454486,0.00013598,2]
[423528983,1780193431000,-24.97545514,0.00013697,2]
[423528984,1780193431000,-492.02454486,0.00013697,2]
[423528982,1780193431000,-250.0,0.00013648,2]
[423528986,1780193431000,-300.0,0.00013698,2]
[423528988,1780193431000,-293.2923793,0.00013698,2]
[423528987,1780193431000,-86.7076207,0.00013698,2]
[423528985,1780193431000,-113.2923793,0.00013698,2]
[423529003,1780193437000,-500.0,0.00014954,2]
[423528992,1780193437000,-500.0,0.00013698,2]
[423528991,1780193437000,-206.7076207,0.00013698,2]
[423528995,1780193437000,-160.0,0.00013882,2]
[423528997,1780193437000,-209.12966642,0.00013882,2]
[423528998,1780193437000,-225.77649901,0.00014954,2]
[423528996,1780193437000,-215.58360558,0.00013882,2]
[423528993,1780193437000,-540.00228339,0.00013698,2]
[423528999,1780193437000,-500.0,0.00014954,2]
[423529001,1780193437000,-500.0,0.00014954,2]
[423529000,1780193437000,-500.0,0.00014954,2]
[423529007,1780193437000,-500.0,0.00014954,2]
[423528994,1780193437000,-542.77506674,0.00013698,2]
[423529004,1780193437000,-500.0,0.00014954,2]
[423529006,1780193437000,-500.0,0.00014954,2]
[423529017,1780193437000,-346.5008506,0.00014958,2]
[423529014,1780193437000,-300.0,0.00014958,2]
[423529015,1780193437000,-300.0,0.00014958,2]
[423529013,1780193437000,-500.0,0.00014954,2]
[423529012,1780193437000,-500.0,0.00014954,2]
[423529016,1780193437000,-301.09916034,0.00014958,2]
[423529009,1780193437000,-243.29194277,0.00014954,2]
[423529010,1780193437000,-256.70805723,0.00014954,2]
[423529008,1780193437000,-285.54841539,0.00014954,2]
[423529002,1780193437000,-500.0,0.00014954,2]
[423529005,1780193437000,-500.0,0.00014954,2]
[423529011,1780193437000,-500.0,0.00014954,2]
[423529090,1780193438000,-166.66,0.00019138,2]
[423529100,1780193438000,-156.0,0.0002,2]
[423529099,1780193438000,-172.26689617,0.0001977,2]
[423529097,1780193438000,-166.66,0.0001951,2]
[423529098,1780193438000,-12010.10673149,0.00019545,2]
[423529080,1780193438000,-2000.0,0.00019004,2]
[423529085,1780193438000,-101712.2555747,0.00019126,2]
[423529083,1780193438000,-3418.9031244,0.00019126,2]
[423529081,1780193438000,-3469.53938939,0.00019026,2]
[423529094,1780193438000,-500.0,0.00019222,2]
[423529087,1780193438000,-19508.1269515,0.00019126,2]
[423529096,1780193438000,-500.0,0.00019496,2]
[423529105,1780193438000,-153.0,0.0002,2]
[423529101,1780193438000,-200.0,0.0002,2]
[423529103,1780193438000,-151.0,0.0002,2]
[423529104,1780193438000,-305.0,0.0002,2]
[423529102,1780193438000,-347.0,0.0002,2]
[423529072,1780193438000,-29844.52,0.00018584,2]
[423529107,1780193438000,-21688.25,0.0002,2]
[423529109,1780193438000,-154.0,0.0002,2]
[423529108,1780193438000,-152.0,0.0002,2]
[423529111,1780193438000,-811.0,0.0002,2]
[423529110,1780193438000,-529.0,0.0002,2]
[423529113,1780193438000,-547.7,0.00020381,2]
[423529112,1780193438000,-3469.53938931,0.00020249,2]
[423529095,1780193438000,-299.0,0.00019496,2]
[423529074,1780193438000,-166.66,0.00018767,2]
[423529064,1780193438000,-500.0,0.00018483,2]
[423529078,1780193438000,-500.0,0.00018948,2]
[423529114,1780193438000,-258.21832383,0.00020498,2]
[423529020,1780193438000,-2500.0,0.00014958,2]
[423529019,1780193438000,-2153.4991494,0.00014958,2]
[423529022,1780193438000,-2500.0,0.00014958,2]
[423529028,1780193438000,-2500.0,0.00014958,2]
[423529030,1780193438000,-250.0,0.00014958,2]
[423529026,1780193438000,-158.90404089,0.00014958,2]
[423529024,1780193438000,-2500.0,0.00014958,2]
[423529037,1780193438000,-151.0,0.00016438,2]
[423529033,1780193438000,-2007.72003336,0.00016286,2]
[423529035,1780193438000,-151.0,0.00016438,2]
[423529039,1780193438000,-200.0,0.00017503,2]
[423529049,1780193438000,-166.66,0.00018395,2]
[423529051,1780193438000,-547.7,0.0001841,2]
[423529056,1780193438000,-166.5506478,0.00018483,2]
[423529053,1780193438000,-194.27979737,0.00018474,2]
[423529041,1780193438000,-166.66,0.00017652,2]
[423529047,1780193438000,-250.0,0.00018176,2]
[423529045,1780193438000,-166.66,0.00018024,2]
[423529042,1780193438000,-1000.0,0.00017884,2]
[423529058,1780193438000,-500.0,0.00018483,2]
[423529062,1780193438000,-500.0,0.00018483,2]
[423529060,1780193438000,-500.0,0.00018483,2]
[423529066,1780193438000,-384.99082917,0.00018483,2]
[423529068,1780193438000,-190.50455257,0.00018483,2]
[423529070,1780193438000,-1500000.0,0.00018484,2]
[423529076,1780193438000,-150.0,0.00018925,2]
[423529079,1780193438000,-151.0,0.00019,2]
[423529106,1780193438000,-424.0,0.0002,2]
[423529119,1780193438000,-153.0,0.00021,2]
[423529116,1780193438000,-200.0,0.00021,2]
[423529151,1780193438000,-150.0,0.000225,14]
[423529147,1780193438000,-500.0,0.00022182,2]
[423529150,1780193438000,-500.0,0.00022476,2]
[423529153,1780193438000,-150.0,0.00022776,2]
[423529148,1780193438000,-547.7,0.00022353,2]
[423529155,1780193438000,-2319.72410669,0.00022943,2]
[423529154,1780193438000,-500.0,0.00022848,2]
[423529156,1780193438000,-200.0,0.00023,2]
[423529158,1780193438000,-305.0,0.00023,2]
[423529157,1780193438000,-347.0,0.00023,2]
[423529161,1780193438000,-160.0,0.00023,2]
[423529159,1780193438000,-157.0,0.00023,2]
[423529149,1780193438000,-2236.95670847,0.00022395,2]
[423529162,1780193438000,-529.0,0.00023,2]
[423529166,1780193438000,-235.31,0.00023368,2]
[423529165,1780193438000,-150.99,0.00023368,2]
[423529164,1780193438000,-9999.99,0.00023368,2]
[423529168,1780193438000,-2405.55389863,0.00023491,2]
[423529167,1780193438000,-8048.16877316,0.00023433,2]
[423529169,1780193438000,-10467.01,0.00023501,2]
[423529171,1780193438000,-399.26,0.000236,14]
[423529170,1780193438000,-500.0,0.00023533,2]
[423529172,1780193438000,-716.74,0.00023658,2]
[423529173,1780193438000,-174.09425739,0.000237,2]
[423529174,1780193438000,-2000.0,0.00023755,2]
[423529115,1780193438000,-156.0,0.00021,2]
[423529163,1780193438000,-171.29,0.00023142,2]
[423529152,1780193438000,-3469.53938931,0.00022694,2]
[423529160,1780193438000,-424.0,0.00023,2]
[423529145,1780193438000,-152.0,0.00022,2]
[423529117,1780193438000,-347.0,0.00021,2]
[423529146,1780193438000,-529.0,0.00022,2]
[423529118,1780193438000,-305.0,0.00021,2]
[423529127,1780193438000,-3469.53938931,0.00021471,2]
[423529126,1780193438000,-2000.0,0.00021379,2]
[423529125,1780193438000,-2080.17592889,0.00021299,2]
[423529120,1780193438000,-424.0,0.00021,2]
[423529121,1780193438000,-152.0,0.00021,2]
[423529124,1780193438000,-274.91773301,0.00021299,2]
[423529122,1780193438000,-529.0,0.00021,2]
[423529129,1780193438000,-500.0,0.00021536,2]
[423529128,1780193438000,-500.0,0.00021536,2]
[423529130,1780193438000,-500.0,0.00021536,2]
[423529131,1780193438000,-2286.2274435,0.00021554,2]
[423529123,1780193438000,-151.0,0.00021299,2]
[423529142,1780193438000,-153.0,0.00022,2]
[423529144,1780193438000,-9699.3,0.00022,2]
[423529133,1780193438000,-1000.0,0.00021722,2]
[423529141,1780193438000,-305.0,0.00022,2]
[423529143,1780193438000,-424.0,0.00022,2]
[423529137,1780193438000,-176.76,0.00021918,2]
[423529136,1780193438000,-2157.14243826,0.00021847,2]
[423529138,1780193438000,-164.0,0.00022,2]
[423529139,1780193438000,-200.0,0.00022,2]
[423529135,1780193438000,-156.31,0.00021766,2]
[423529134,1780193438000,-16307.54,0.00021751,2]
[423529132,1780193438000,-1397.3289,0.00021666,2]
[423529140,1780193438000,-347.0,0.00022,2]
[423529213,1780193439000,-428.0,0.00025,2]
[423529216,1780193439000,-462.8,0.00025115,30]
[423529217,1780193439000,-2682.57183977,0.00025135,2]
[423529211,1780193439000,-365.0,0.00025,2]
[423529212,1780193439000,-323.0,0.00025,2]
[423529207,1780193439000,-462.8,0.00024886,7]
[423529209,1780193439000,-150.0,0.00025,2]
[423529214,1780193439000,-539.54553,0.00025,2]
[423529210,1780193439000,-204.0,0.00025,2]
[423529208,1780193439000,-150.0,0.00025,2]
[423529218,1780193439000,-3469.53938931,0.00025139,2]
[423529215,1780193439000,-568.0,0.00025082,2]
[423529222,1780193439000,-578.20924308,0.00025202,2]
[423529233,1780193439000,-166.754,0.00025381,2]
[423529219,1780193439000,-8048.16877313,0.00025155,2]
[423529221,1780193439000,-1428.38747117,0.00025202,2]
[423529226,1780193439000,-220.0,0.00025381,2]
[423529227,1780193439000,-200.0,0.00025381,2]
[423529225,1780193439000,-250.0,0.00025381,2]
[423529220,1780193439000,-571.50660492,0.00025166,2]
[423529223,1780193439000,-2611.82,0.00025252,7]
[423529228,1780193439000,-150.0,0.00025381,2]
[423529230,1780193439000,-294.0,0.00025381,2]
[423529229,1780193439000,-231.027,0.00025381,2]
[423529232,1780193439000,-246.795,0.00025381,2]
[423529231,1780193439000,-240.161,0.00025381,2]
[423529206,1780193439000,-3731.2,0.00024876,7]
[423529224,1780193439000,-462.8,0.00025343,2]
[423529204,1780193439000,-264.859247,0.00024874,14]
[423529176,1780193439000,-152.0,0.00023772,2]
[423529202,1780193439000,-462.8,0.00024658,2]
[423529239,1780193439000,-150.717,0.00025381,2]
[423529175,1780193439000,-151.0,0.00023772,2]
[423529178,1780193439000,-280.04317449,0.00023772,2]
[423529177,1780193439000,-151.0,0.00023772,2]
[423529180,1780193439000,-152.95,0.00023825,2]
[423529179,1780193439000,-150.0,0.00023772,2]
[423529181,1780193439000,-5000.0,0.00023866,2]
[423529187,1780193439000,-424.0,0.00024,2]
[423529188,1780193439000,-529.0,0.00024,2]
[423529190,1780193439000,-156.31,0.00024057,2]
[423529189,1780193439000,-2494.55939288,0.00024039,2]
[423529184,1780193439000,-200.0,0.00024,2]
[423529185,1780193439000,-347.0,0.00024,2]
[423529186,1780193439000,-305.0,0.00024,2]
[423529183,1780193439000,-500.0,0.00024,2]
[423529192,1780193439000,-478.28,0.00024174,2]
[423529193,1780193439000,-1011.28,0.00024174,2]
[423529191,1780193439000,-1107.74,0.00024174,2]
[423529200,1780193439000,-1000.0,0.00024658,2]
[423529194,1780193439000,-7682.88,0.00024174,2]
[423529196,1780193439000,-571.50660498,0.00024558,2]
[423529197,1780193439000,-150.37708739,0.00024561,2]
[423529198,1780193439000,-2586.85809042,0.00024587,2]
[423529195,1780193439000,-547.7,0.00024324,2]
[423529201,1780193439000,-643.16,0.00024658,2]
[423529199,1780193439000,-259.753189,0.00024613,14]
[423529203,1780193439000,-412.79781228,0.00024704,2]
[423529205,1780193439000,-186.344679,0.00024874,14]
[423529234,1780193439000,-218.727,0.00025381,2]
[423529182,1780193439000,-3469.53938931,0.00023917,2]
[423529238,1780193439000,-186.0,0.00025381,2]
[423529271,1780193439000,-547.7,0.00026296,2]
[423529277,1780193439000,-226.96326604,0.00026397,2]
[423529276,1780193439000,-159.20751125,0.00026397,2]
[423529270,1780193439000,-462.8,0.00026257,7]
[423529273,1780193439000,-200.0,0.00026328,2]
[423529275,1780193439000,-571.50660492,0.00026382,2]
[423529274,1780193439000,-3469.53938931,0.00026362,2]
[423529272,1780193439000,-1536.04360648,0.00026298,2]
[423529278,1780193439000,-462.8,0.00026486,30]
[423529279,1780193439000,-1446.0,0.00026714,5]
[423529281,1780193439000,-568.0,0.00026746,3]
[423529282,1780193439000,-2991.49051684,0.00026779,2]
[423529296,1780193439000,-500.0,0.00027123,2]
[423529269,1780193439000,-2884.75459676,0.00026231,2]
[423529280,1780193439000,-462.8,0.00026714,2]
[423529283,1780193439000,-1592.87721992,0.00026846,2]
[423529286,1780193439000,-462.8,0.00026943,7]
[423529288,1780193439000,-200.0,0.00027113,2]
[423529287,1780193439000,-571.50660492,0.0002699,2]
[423529284,1780193439000,-8048.16877313,0.00026878,2]
[423529289,1780193439000,-500.0,0.00027123,2]
[423529291,1780193439000,-500.0,0.00027123,2]
[423529290,1780193439000,-500.0,0.00027123,2]
[423529292,1780193439000,-500.0,0.00027123,2]
[423529295,1780193439000,-500.0,0.00027123,2]
[423529293,1780193439000,-500.0,0.00027123,2]
[423529294,1780193439000,-500.0,0.00027123,2]
[423529297,1780193439000,-500.0,0.00027123,2]
[423529285,1780193439000,-200.48377202,0.0002689,2]
[423529268,1780193439000,-568.0,0.00026192,3]
[423529236,1780193439000,-150.675,0.00025381,2]
[423529267,1780193439000,-2000.0,0.0002613,2]
[423529266,1780193439000,-250.0,0.00026084,2]
[423529237,1780193439000,-167.326,0.00025381,2]
[423529235,1780193439000,-150.0,0.00025381,2]
[423529242,1780193439000,-3550.0,0.00025381,2]
[423529241,1780193439000,-928.0,0.00025381,2]
[423529244,1780193439000,-1273.0,0.00025381,2]
[423529243,1780193439000,-525.0,0.00025381,2]
[423529251,1780193439000,-568.0,0.00025637,2]
[423529253,1780193439000,-1481.2378076,0.0002575,2]
[423529252,1780193439000,-2781.82699784,0.00025683,2]
[423529245,1780193439000,-1226.0,0.00025381,2]
[423529246,1780193439000,-1348.974,0.00025381,2]
[423529247,1780193439000,-3639.0,0.00025381,2]
[423529250,1780193439000,-462.8,0.00025572,7]
[423529240,1780193439000,-1356.0,0.00025381,2]
[423529248,1780193439000,-159.20751125,0.00025397,2]
[423529249,1780193439000,-200.0,0.00025542,2]
[423529261,1780193439000,-500.0,0.00026,2]